fUSD/lending_fUSD_20251011
["ID","MTS","AMOUNT","RATE_DAILY","PERIOD"]
[390831599,1760175040225,-150.0,0.00014991,2]
[390831601,1760175040236,-500.0,0.00014991,2]
[390831603,1760175040248,-500.0,0.00014991,2]
[390831605,1760175040257,-500.0,0.00014991,2]
[390831607,1760175040267,-150.0,0.00014991,2]
[390831609,1760175040279,-150.0,0.00014991,2]
[390831611,1760175040289,-500.0,0.00014991,2]
[390831613,1760175040298,-150.0,0.00014991,2]
[390831615,1760175040307,-150.0,0.00014991,2]
[390831617,1760175040317,-150.0,0.00014991,2]
[390831619,1760175040326,-618.0,0.00014991,2]
[390831621,1760175040336,-475.0,0.00014991,2]
[390831623,1760175040346,-500.0,0.00014991,2]
[390831625,1760175040357,-500.0,0.00014991,2]
[390831627,1760175040366,-150.0,0.00014991,2]
[390831629,1760175040375,-447.0,0.00014991,2]
[390831631,1760175040385,-500.0,0.00014991,2]
[390831633,1760175040394,-500.0,0.00014991,2]
[390831635,1760175040403,-30643.01683135,0.00014997,2]
[390831637,1760175040412,-151.0,0.00014997,2]
[390831639,1760175040422,-5000.0,0.00014999,2]
[390831641,1760175040431,-150.0,0.00014999,2]
[390831643,1760175040440,-666.0,0.00014999,2]
[390831645,1760175040450,-11624.01,0.00015,2]
[390831647,1760175040460,-2147296.29053415,0.00015,2]
[390831649,1760175040470,-2022.90396124,0.00015,2]
[390831651,1760175040479,-7874.71377308,0.00015,2]
[390831653,1760175040489,-1926158.61815673,0.00015,2]
[390831655,1760175040501,-250.0,0.00015,2]
[390831657,1760175040510,-250.0,0.00015,2]
[390831659,1760175040519,-250.0,0.00015,2]
[390831661,1760175040529,-250.0,0.00015,2]
[390831663,1760175040538,-250.0,0.00015,2]
[390831665,1760175040547,-250.0,0.00015,2]
[390831667,1760175040556,-250.0,0.00015,2]
[390831668,1760175040568,-250.0,0.00015,2]
[390831669,1760175040580,-250.0,0.00015,2]
[390831670,1760175040590,-250.0,0.00015,2]
[390831671,1760175040600,-250.0,0.00015,2]
[390831672,1760175040611,-250.0,0.00015,2]
[390831673,1760175040620,-1859.49378719,0.00015,2]
[390831674,1760175040630,-24656.83811416,0.00015,2]
[390831675,1760175040639,-90169.81857059,0.00015,2]
[390831676,1760175040652,-261.29546927,0.00015,3]
[390831677,1760175040661,-160.0,0.00015,2]
[390831678,1760175040670,-151.0,0.00015,2]
[390831679,1760175040680,-151.0,0.00015,2]
[390831680,1760175040690,-151.410703,0.00015,2]
[390831681,1760175040700,-151.0,0.00015,2]
[390831682,1760175040709,-151.0,0.00015,2]
[390831683,1760175040719,-151.0,0.00015,2]
[390831684,1760175040728,-151.0,0.00015,2]
[390831685,1760175040738,-151.0,0.00015,2]
[390831686,1760175040750,-151.0,0.00015,2]
[390831687,1760175040759,-151.0,0.00015,2]
[390831688,1760175040769,-151.0,0.00015,2]
[390831689,1760175040778,-151.0,0.00015,2]
[390831690,1760175040788,-151.0,0.00015,2]
[390831691,1760175040797,-151.0,0.00015,2]
[390831692,1760175040807,-151.0,0.00015,2]
[390831693,1760175040816,-151.0,0.00015,2]
[390831694,1760175040826,-151.0,0.00015,2]
[390831695,1760175040835,-1238.955333,0.00015,2]
[390831696,1760175040845,-199.942925,0.00015,2]
[390831698,1760175040854,-1238.955333,0.00015,2]
[390831700,1760175040864,-881.341442,0.00015,2]
[390831701,1760175040873,-1238.955333,0.00015,2]
[390831703,1760175040882,-881.341442,0.00015,2]
[390831705,1760175040891,-1238.955333,0.00015,2]
[390831707,1760175040900,-385.86361,0.00015,2]
[390831708,1760175040910,-881.341442,0.00015,2]
[390831710,1760175040919,-385.86361,0.00015,2]
[390831712,1760175040928,-881.341442,0.00015,2]
[390831714,1760175040937,-385.86361,0.00015,2]
[390831716,1760175040947,-385.86361,0.00015,2]
[390831718,1760175040956,-151.0,0.00015,2]
[390831719,1760175040965,-151.0,0.00015,2]
[390831721,1760175040974,-370.418385,0.00015,2]
[390831723,1760175040984,-370.418385,0.00015,2]
[390831725,1760175040994,-370.418385,0.00015,2]
[390831727,1760175041004,-151.0,0.00015,2]
[390831728,1760175041013,-370.418385,0.00015,2]
[390831730,1760175041023,-259.632733,0.00015,2]
[390831732,1760175041032,-259.632733,0.00015,2]
[390831734,1760175041041,-979.58055,0.00015,2]
[390831735,1760175041051,-259.632733,0.00015,2]
[390831737,1760175041060,-979.58055,0.00015,2]
[390831739,1760175041069,-259.632733,0.00015,2]
[390831741,1760175041079,-151.0,0.00015,2]
[390831743,1760175041089,-979.58055,0.00015,2]
[390831744,1760175041098,-979.58055,0.00015,2]
[390831746,1760175041108,-151.0,0.00015,2]
[390831748,1760175041117,-242.308826,0.00015,2]
[390831749,1760175041127,-242.308826,0.00015,2]
[390831751,1760175041136,-242.308826,0.00015,2]
[390831753,1760175041146,-151.0,0.00015,2]
[390831755,1760175041155,-151.0,0.00015,2]
[390831757,1760175041164,-242.308826,0.00015,2]
[390831758,1760175041173,-151.0,0.00015,2]
[390831760,1760175041183,-151.0,0.00015,2]
[390831762,1760175041193,-151.0,0.00015,2]
[390831764,1760175041202,-151.0,0.00015,2]
[390831766,1760175041211,-151.0,0.00015,2]
[390831768,1760175041221,-151.0,0.00015,2]
[390831770,1760175041230,-298.603836,0.00015,2]
[390831772,1760175041239,-151.0,0.00015,2]
[390831773,1760175041250,-151.0,0.00015,2]
[390831785,1760175041371,-1032.246098,0.00015,2]
[390831787,1760175041380,-1032.246098,0.00015,2]
[390831788,1760175041389,-1032.246098,0.00015,2]
[390831790,1760175041398,-1032.246098,0.00015,2]
[390831792,1760175041407,-5351487.45104344,0.00015,2]
[390831794,1760175041423,-58781.99517895,0.00015,2]
[390831797,1760175041443,-34523.75098506,0.00015,2]
[390831799,1760175041453,-122858.68841896,0.00015,2]
[390831964,1760175043112,-151.0,0.00014789,2]
[390831966,1760175043122,-181.57952245,0.00014805,2]
[390831999,1760175043385,-106.54056786,0.00014805,2]
[390832001,1760175043395,-155047.99083546,0.00015,2]
[390832104,1760175044355,-4397.66078415,0.00014579,2]
[390833187,1760175328039,220.038,0.00027397,120]
[390833197,1760175388833,1029.0,0.00027397,120]
[390833200,1760175467306,695.1,0.00027397,120]
[390833207,1760175762158,52250.76117792,0.00013,2]
[390833208,1760175762191,1052.0,0.00013,2]
[390833209,1760175762215,2455.33162576,0.00013,2]
[390833210,1760175762239,2455.33162576,0.00013,2]
[390833420,1760176171842,-172.39069941,0.00012898,2]
[390833421,1760176186901,-1200.0,0.00012998,2]
[390833422,1760176186926,-1200.0,0.00012998,2]
[390833423,1760176186957,-2000.0,0.00012998,2]
[390833424,1760176186981,-2000.0,0.00012999,2]
[390833425,1760176187006,-207.21280021,0.00012999,2]
[390833426,1760176187038,-252.4030816,0.00012999,2]
[390833427,1760176187062,-490.53351488,0.00012999,2]
[390833428,1760176187087,-251.5248362,0.00012999,2]
[390833429,1760176187113,-173.62382877,0.00012999,2]
[390833430,1760176187137,-150.0,0.00012999,2]
[390833431,1760176187164,-650.0,0.00012999,2]
[390833432,1760176187187,-21252.31123893,0.00013,2]
[390833474,1760176232167,-624.73945625,0.000129,2]
[390833476,1760176232177,-1200.0,0.00012999,2]
[390833478,1760176232187,-500.0,0.00012999,2]
[390833480,1760176232196,-500.0,0.00012999,2]
[390833482,1760176232206,-500.0,0.00012999,2]
[390833484,1760176232215,-300.0,0.00012999,2]
[390833486,1760176232225,-500.0,0.00012999,2]
[390833488,1760176232234,-500.0,0.00012999,2]
[390833490,1760176232243,-427.28985367,0.00012999,2]
[390833492,1760176232252,-7717.93034865,0.00013,2]
[390833509,1760176232435,-596.60464793,0.00013,2]
[390833514,1760176232517,-2371.83508924,0.00013,2]
[390834201,1760176239310,-500.0,0.00012999,2]
[390834203,1760176239319,-500.0,0.00012999,2]
[390834205,1760176239330,-547.00399419,0.00012999,2]
[390834207,1760176239339,-590850.30260547,0.00013,2]
[390834209,1760176239348,-500.0,0.00013,2]
[390834211,1760176239357,-500.0,0.00013274,2]
[390834213,1760176239367,-2265.92236532,0.00013332,2]
[390834215,1760176239376,-3558.46243654,0.00013432,2]
[390834217,1760176239386,-624.73945618,0.00013456,2]
[390834219,1760176239395,-2265.92236525,0.00013506,2]
[390834221,1760176239404,-500.0,0.00013548,2]
[390834223,1760176239414,-3558.46243654,0.00013595,2]
[390834225,1760176239423,-1803.13,0.00013632,2]
[390834227,1760176239432,-2265.92236525,0.0001368,2]
[390834229,1760176239442,-610.0,0.00013699,2]
[390834231,1760176239451,-861.23,0.000137,2]
[390834234,1760176239461,-861.23,0.000137,2]
[390834235,1760176239471,-200.0,0.0001375,2]
[390834237,1760176239480,-3558.46243654,0.00013758,2]
[390834239,1760176239490,-500.0,0.00013822,2]
[390834241,1760176239499,-2265.92236525,0.00013855,2]
[390834243,1760176239508,-793.0427412,0.00013856,2]
[390834245,1760176239519,-666.0,0.00013874,3]
[390834247,1760176239528,-151.0,0.0001389,2]
[390834250,1760176239537,-2334.01,0.00013893,2]
[390834252,1760176239547,-186.1,0.000139,2]
[390834254,1760176239557,-3558.46243654,0.00013921,2]
[390834255,1760176239567,-268.49,0.00013935,2]
[390834258,1760176239576,-660.0,0.00013942,2]
[390834260,1760176239585,-524.16956021,0.00013947,2]
[390834262,1760176239595,-1912.0,0.0001395,2]
[390834264,1760176239605,-195.16121432,0.0001398,2]
[390834266,1760176239615,-964.0,0.00013986,2]
[390834268,1760176239624,-1284.0,0.00013989,2]
[390834270,1760176239634,-1819.0,0.00013994,2]
[390834272,1760176239643,-258.477011,0.00014,2]
[390834274,1760176239653,-276.0,0.00014011,2]
[390834276,1760176239663,-624.73945618,0.00014011,2]
[390834277,1760176239672,-917.0,0.00014012,2]
[390834279,1760176239682,-837.0,0.0001402,2]
[390834281,1760176239691,-2265.92236525,0.00014029,2]
[390834283,1760176239700,-714.0,0.00014055,2]
[390834286,1760176239710,-162.37,0.0001406,2]
[390834288,1760176239719,-747.0,0.00014063,2]
[390834289,1760176239729,-1054.0,0.0001407,2]
[390834291,1760176239738,-785.21,0.0001407,2]
[390834293,1760176239747,-277.0,0.0001408,2]
[390834296,1760176239757,-3558.46243654,0.00014084,2]
[390834298,1760176239768,-463.27,0.00014096,2]
[390834300,1760176239777,-255.0,0.00014104,2]
[390834301,1760176239787,-1701.0,0.00014125,2]
[390834303,1760176239796,-586.0,0.00014133,2]
[390834305,1760176239805,-812.0,0.00014139,2]
[390834307,1760176239814,-159.0,0.0001414,2]
[390834309,1760176239824,-199.89764461,0.00014154,2]
[390834311,1760176239833,-248.71531821,0.00014154,2]
[390834314,1760176239843,-524.16956021,0.00014185,2]
[390834317,1760176239852,-250.0,0.0001419,2]
[390834321,1760176239862,-300.0,0.0001419,2]
[390834323,1760176239872,-150.0,0.000142,2]
[390834325,1760176239882,-2265.92236525,0.00014203,2]
[390834328,1760176239893,-193.0,0.0001421,2]
[390834330,1760176239903,-1597.0,0.0001421,2]
[390834332,1760176239912,-3558.46243654,0.00014248,2]
[390834334,1760176239922,-753.0,0.0001428,2]
[390834336,1760176239931,-515.0,0.0001428,2]
[390834338,1760176239940,-300.0,0.00014297,2]
[390834339,1760176239951,-2500.0,0.00014297,2]
[390834341,1760176239966,-2500.0,0.00014297,2]
[390834344,1760176239975,-2500.0,0.00014297,2]
[390834346,1760176239985,-300.0,0.00014298,2]
[390834348,1760176239994,-2000.0,0.00014298,2]
[390834350,1760176240003,-195.0,0.00014298,2]
[390834352,1760176240014,-2500.0,0.00014298,2]
[390834354,1760176240023,-2500.0,0.00014298,2]
[390834356,1760176240034,-301.64688807,0.00014298,2]
[390834358,1760176240043,-195.0,0.00014298,2]
[390834360,1760176240052,-2000.0,0.00014298,2]
[390834362,1760176240062,-250.0,0.00014298,2]
[390834364,1760176240070,-195.0,0.00014298,2]
[390834366,1760176240080,-250.0,0.00014298,2]
[390834368,1760176240089,-195.0,0.00014298,2]
[390834370,1760176240098,-1680.0,0.00014299,2]
[390834372,1760176240107,-900.0,0.000143,5]
[390834374,1760176240116,-1014.0,0.0001435,2]
[390834376,1760176240126,-865.0,0.0001435,2]
[390834377,1760176240135,-2265.92236525,0.00014377,2]
[390834379,1760176240144,-1800.0,0.000144,5]
[390834381,1760176240153,-3558.46243654,0.00014411,2]
[390834383,1760176240162,-1182.0,0.00014421,2]
[390834386,1760176240171,-524.16956021,0.00014423,2]
[390834387,1760176240181,-2700.0,0.000145,5]
[390834390,1760176240191,-2265.92236525,0.00014552,2]
[390834391,1760176240200,-624.73945618,0.00014567,2]
[390834394,1760176240210,-200.0,0.0001457,2]
[390834396,1760176240219,-151.0,0.0001457,2]
[390834398,1760176240229,-151.0,0.0001457,2]
[390834400,1760176240238,-151.0,0.0001457,2]
[390834401,1760176240248,-151.0,0.0001457,2]
[390834403,1760176240257,-151.0,0.0001457,2]
[390834406,1760176240268,-151.0,0.0001457,2]
[390834408,1760176240279,-151.0,0.0001457,2]
[390834410,1760176240288,-322.6107,0.0001457,2]
[390834412,1760176240298,-151.0,0.0001457,2]
[390834414,1760176240308,-200.0,0.0001457,2]
[390834416,1760176240317,-151.0,0.0001457,2]
[390834418,1760176240326,-151.0,0.0001457,2]
[390834420,1760176240335,-151.0,0.0001457,2]
[390834422,1760176240344,-151.0,0.0001457,2]
[390834424,1760176240353,-151.0,0.0001457,2]
[390834426,1760176240363,-151.0,0.0001457,2]
[390834428,1760176240373,-151.0,0.0001457,2]
[390834430,1760176240382,-151.0,0.0001457,2]
[390834432,1760176240391,-151.0,0.0001457,2]
[390834434,1760176240400,-151.0,0.0001457,2]
[390834436,1760176240410,-151.0,0.0001457,2]
[390834438,1760176240419,-151.0,0.0001457,2]
[390834440,1760176240428,-151.0,0.0001457,2]
[390834442,1760176240438,-646.65982734,0.0001457,2]
[390834444,1760176240447,-3558.46243654,0.00014574,2]
[390834446,1760176240458,-3405.0,0.00014579,2]
[390834448,1760176240467,-740.0,0.00014579,2]
[390834450,1760176240476,-1266.0,0.00014579,2]
[390834452,1760176240486,-2048.0,0.00014579,2]
[390834454,1760176240496,-1587.0,0.00014579,2]
[390834456,1760176240505,-571.0,0.00014579,2]
[390834458,1760176240517,-604.0,0.00014579,2]
[390834460,1760176240527,-1309.0,0.00014579,2]
[390834462,1760176240536,-816.0,0.00014579,2]
[390834464,1760176240545,-4120.0,0.00014579,2]
[390834466,1760176240555,-6536.147,0.00014579,2]
[390834469,1760176240564,-622.0,0.00014579,2]
[390834471,1760176240573,-3074.0,0.00014579,2]
[390834473,1760176240584,-995.0,0.00014584,2]
[390834475,1760176240594,-175.87,0.000146,2]
[390834477,1760176240603,-178.56,0.000146,2]
[390834478,1760176240613,-175.87,0.000146,2]
[390834480,1760176240622,-474.32,0.000146,2]
[390834482,1760176240631,-3600.0,0.000146,5]
[390834485,1760176240640,-150.0,0.00014611,2]
[390834487,1760176240649,-150.0,0.00014611,2]
[390834489,1760176240658,-150.0,0.00014611,2]
[390834491,1760176240667,-524.16956021,0.00014662,2]
[390834493,1760176240676,-818.27158091,0.00014691,2]
[390834494,1760176240686,-4500.0,0.000147,5]
[390834496,1760176240695,-1425.0,0.00014724,2]
[390834499,1760176240705,-2265.92236525,0.00014726,2]
[390834501,1760176240714,-1000.0,0.0001473,2]
[390834503,1760176240723,-1000.0,0.00014734,2]
[390834504,1760176240732,-3558.46243654,0.00014737,2]
[390834506,1760176240741,-1000.0,0.00014751,2]
[390834509,1760176240751,-1000.0,0.00014765,2]
[390834511,1760176240760,-1425.0,0.00014768,2]
[390834512,1760176240770,-150.0,0.00014774,2]
[390834515,1760176240779,-1000.0,0.00014786,2]
[390834516,1760176240789,-1000.0,0.00014788,2]
[390834518,1760176240798,-1000.0,0.00014789,2]
[390834520,1760176240808,-1451.23097198,0.00014791,2]
[390834522,1760176240817,-1000.0,0.00014795,2]
[390834524,1760176240826,-1000.0,0.00014796,2]
[390834526,1760176240835,-1425.0,0.00014798,2]
[390834528,1760176240844,-900.0,0.000148,5]
[390834531,1760176240854,-1425.0,0.00014803,2]
[390834532,1760176240863,-1000.0,0.00014806,2]
[390834534,1760176240872,-1000.0,0.00014812,2]
[390834536,1760176240881,-151.33905994,0.00014815,2]
[390834538,1760176240890,-1000.0,0.00014816,2]
[390834540,1760176240900,-1425.0,0.0001482,2]
[390834542,1760176240909,-1000.0,0.00014823,2]
[390834544,1760176240918,-1000.0,0.00014839,2]
[390834547,1760176240927,-1000.0,0.00014839,2]
[390834548,1760176240937,-1425.0,0.0001484,2]
[390834550,1760176240951,-150.0,0.00014842,2]
[390834553,1760176240961,-1425.0,0.0001485,2]
[390834554,1760176240970,-1000.0,0.00014854,2]
[390834557,1760176240979,-1000.0,0.00014859,2]
[390834559,1760176240990,-1000.0,0.00014867,2]
[390834560,1760176240999,-447.07332217,0.00014873,2]
[390834562,1760176241010,-1425.0,0.00014876,2]
[390834564,1760176241024,-1425.0,0.00014879,2]
[390834566,1760176241034,-200.0,0.0001488,2]
[390834568,1760176241044,-2939.2383,0.00014897,2]
[390834570,1760176241053,-1000.0,0.00014897,2]
[390834572,1760176241062,-5000.0,0.00014897,2]
[390834575,1760176241072,-695.85681364,0.00014897,2]
[390834576,1760176241081,-695.85681361,0.00014898,2]
[390834578,1760176241090,-695.85681361,0.00014899,2]
[390834581,1760176241100,-695.85681361,0.00014899,2]
[390834583,1760176241109,-6651.92259342,0.000149,2]
[390834585,1760176241118,-172.096,0.000149,2]
[390834587,1760176241127,-4362.042,0.000149,2]
[390834589,1760176241136,-945.48496782,0.000149,2]
[390834591,1760176241146,-1817.531616,0.000149,2]
[390834593,1760176241155,-3558.46243654,0.000149,2]
[390834595,1760176241164,-900.0,0.000149,5]
[390834596,1760176241174,-2265.92236525,0.000149,2]
[390834599,1760176241183,-695.85681361,0.000149,2]
[390834601,1760176241192,-524.16956021,0.000149,2]
[390834603,1760176241202,-777.35536166,0.000149,2]
[390834604,1760176241212,-343.53956906,0.000149,2]
[390834606,1760176241221,-2575.82818364,0.000149,2]
[390834608,1760176241230,-1000.0,0.00014907,2]
[390834610,1760176241239,-150.0,0.0001491,2]
[390834612,1760176241248,-1000.0,0.00014911,2]
[390834614,1760176241257,-1000.0,0.00014912,2]
[390834616,1760176241270,-1425.0,0.00014923,2]
[390834619,1760176241280,-1425.0,0.00014924,2]
[390834621,1760176241289,-448.09847741,0.00014928,2]
[390834623,1760176241299,-150.0,0.00014934,2]
[390834625,1760176241308,-1000.0,0.00014934,2]
[390834626,1760176241319,-1304.88772387,0.00014939,2]
[390834628,1760176241328,-1425.0,0.00014946,2]
[390834630,1760176241338,-995.0,0.00014949,2]
[390834632,1760176241347,-500.0,0.0001495,2]
[390834635,1760176241357,-500.0,0.0001495,2]
[390834637,1760176241367,-500.0,0.0001495,2]
[390834639,1760176241376,-500.0,0.0001495,2]
[390834641,1760176241385,-500.0,0.0001495,2]
[390834643,1760176241394,-500.0,0.0001495,2]
[390834645,1760176241403,-500.0,0.0001495,2]
[390834647,1760176241412,-500.0,0.0001495,2]
[390834649,1760176241422,-500.0,0.0001495,2]
[390834651,1760176241432,-500.0,0.0001495,2]
[390834653,1760176241441,-500.0,0.0001495,2]
[390834655,1760176241454,-500.0,0.0001495,2]
[390834657,1760176241463,-500.0,0.0001495,2]
[390834659,1760176241472,-500.0,0.0001495,2]
[390834661,1760176241483,-500.0,0.0001495,2]
[390834663,1760176241492,-788.0,0.0001495,2]
[390834664,1760176241501,-500.0,0.0001495,2]
[390834665,1760176241510,-500.0,0.0001495,2]
[390834666,1760176241521,-500.0,0.0001495,2]
[390834667,1760176241530,-500.0,0.0001495,2]
[390834668,1760176241540,-500.0,0.0001495,2]
[390834669,1760176241549,-500.0,0.0001495,2]
[390834670,1760176241557,-500.0,0.0001495,2]
[390834671,1760176241566,-500.0,0.0001495,2]
[390834672,1760176241575,-500.0,0.0001495,2]
[390834673,1760176241584,-500.0,0.0001495,2]
[390834674,1760176241593,-500.0,0.0001495,2]
[390834676,1760176241603,-500.0,0.0001495,2]
[390834678,1760176241613,-500.0,0.0001495,2]
[390834680,1760176241622,-500.0,0.0001495,2]
[390834682,1760176241632,-500.0,0.0001495,2]
[390834684,1760176241642,-500.0,0.0001495,2]
[390834686,1760176241652,-500.0,0.0001495,2]
[390834688,1760176241661,-500.0,0.0001495,2]
[390834690,1760176241670,-500.0,0.0001495,2]
[390834692,1760176241679,-500.0,0.0001495,2]
[390834694,1760176241688,-500.0,0.0001495,2]
[390834696,1760176241698,-500.0,0.0001495,2]
[390834698,1760176241707,-500.0,0.0001495,2]
[390834700,1760176241716,-622.0,0.0001495,2]
[390834702,1760176241725,-500.0,0.0001495,2]
[390834704,1760176241735,-500.0,0.0001495,2]
[390834706,1760176241744,-500.0,0.0001495,2]
[390834708,1760176241753,-571.0,0.0001495,2]
[390834710,1760176241764,-500.0,0.0001495,2]
[390834712,1760176241773,-500.0,0.0001495,2]
[390834714,1760176241782,-500.0,0.0001495,2]
[390834716,1760176241791,-500.0,0.0001495,2]
[390834718,1760176241800,-500.0,0.0001495,2]
[390834720,1760176241809,-500.0,0.0001495,2]
[390834722,1760176241819,-500.0,0.0001495,2]
[390834724,1760176241828,-500.0,0.0001495,2]
[390834726,1760176241838,-500.0,0.0001495,2]
[390834728,1760176241847,-500.0,0.0001495,2]
[390834730,1760176241856,-500.0,0.0001495,2]
[390834732,1760176241866,-500.0,0.0001495,2]
[390834734,1760176241875,-500.0,0.0001495,2]
[390834736,1760176241884,-500.0,0.0001495,2]
[390834738,1760176241893,-500.0,0.0001495,2]
[390834740,1760176241903,-500.0,0.0001495,2]
[390834742,1760176241911,-500.0,0.0001495,2]
[390834744,1760176241921,-500.0,0.0001495,2]
[390834746,1760176241930,-500.0,0.0001495,2]
[390834748,1760176241939,-500.0,0.0001495,2]
[390834750,1760176241949,-500.0,0.0001495,2]
[390834752,1760176241960,-500.0,0.0001495,2]
[390834755,1760176241970,-500.0,0.0001495,2]
[390834757,1760176241979,-500.0,0.0001495,2]
[390834759,1760176241989,-500.0,0.0001495,2]
[390834761,1760176241998,-500.0,0.0001495,2]
[390834762,1760176242008,-500.0,0.0001495,2]
[390834764,1760176242019,-500.0,0.0001495,2]
[390834767,1760176242030,-500.0,0.0001495,2]
[390834768,1760176242040,-500.0,0.0001495,2]
[390834771,1760176242049,-500.0,0.0001495,2]
[390834772,1760176242058,-500.0,0.0001495,2]
[390834774,1760176242067,-500.0,0.0001495,2]
[390834776,1760176242076,-500.0,0.0001495,2]
[390834778,1760176242087,-500.0,0.0001495,2]
[390834780,1760176242098,-500.0,0.0001495,2]
[390834783,1760176242109,-500.0,0.0001495,2]
[390834784,1760176242118,-500.0,0.0001495,2]
[390834786,1760176242127,-500.0,0.0001495,2]
[390834788,1760176242137,-785.0,0.0001495,2]
[390834790,1760176242147,-500.0,0.0001495,2]
[390834793,1760176242156,-500.0,0.0001495,2]
[390834794,1760176242165,-500.0,0.0001495,2]
[390834796,1760176242174,-500.0,0.0001495,2]
[390834798,1760176242184,-500.0,0.0001495,2]
[390834801,1760176242193,-500.0,0.0001495,2]
[390834803,1760176242202,-500.0,0.0001495,2]
[390834805,1760176242212,-500.0,0.0001495,2]
[390834807,1760176242221,-500.0,0.0001495,2]
[390834809,1760176242231,-500.0,0.0001495,2]
[390834811,1760176242239,-500.0,0.0001495,2]
[390834813,1760176242249,-500.0,0.0001495,2]
[390834815,1760176242258,-500.0,0.0001495,2]
[390834817,1760176242269,-500.0,0.0001495,2]
[390834819,1760176242279,-500.0,0.0001495,2]
[390834821,1760176242287,-500.0,0.0001495,2]
[390834823,1760176242297,-500.0,0.0001495,2]
[390834825,1760176242306,-500.0,0.0001495,2]
[390834826,1760176242316,-500.0,0.0001495,2]
[390834828,1760176242325,-500.0,0.0001495,2]
[390834831,1760176242335,-500.0,0.0001495,2]
[390834833,1760176242344,-500.0,0.0001495,2]
[390834834,1760176242353,-500.0,0.0001495,2]
[390834836,1760176242362,-500.0,0.0001495,2]
[390834839,1760176242373,-500.0,0.0001495,2]
[390834841,1760176242382,-500.0,0.0001495,2]
[390834843,1760176242392,-500.0,0.0001495,2]
[390834845,1760176242401,-500.0,0.0001495,2]
[390834847,1760176242411,-500.0,0.0001495,2]
[390834849,1760176242420,-500.0,0.0001495,2]
[390834851,1760176242433,-500.0,0.0001495,2]
[390834853,1760176242443,-500.0,0.0001495,2]
[390834855,1760176242452,-500.0,0.0001495,2]
[390834857,1760176242461,-500.0,0.0001495,2]
[390834859,1760176242471,-500.0,0.0001495,2]
[390834888,1760176242731,-500.0,0.0001495,2]
[390834890,1760176242740,-500.0,0.0001495,2]
[390834892,1760176242749,-500.0,0.0001495,2]
[390834894,1760176242759,-500.0,0.0001495,2]
[390834896,1760176242770,-500.0,0.0001495,2]
[390834898,1760176242779,-500.0,0.0001495,2]
[390834900,1760176242788,-500.0,0.0001495,2]
[390834902,1760176242798,-500.0,0.0001495,2]
[390834904,1760176242807,-500.0,0.0001495,2]
[390834906,1760176242817,-500.0,0.0001495,2]
[390834908,1760176242827,-500.0,0.0001495,2]
[390834910,1760176242836,-1000.0,0.00014951,2]
[390834912,1760176242847,-1000.0,0.00014958,2]
[390834914,1760176242855,-1000.0,0.00014958,2]
[390834916,1760176242865,-2499.0,0.00014959,2]
[390834918,1760176242875,-300.0,0.00014959,2]